Cogmind - Beta 16 @@@ ROGUE MODE // 2025.11.13 @ 20:50:03 Player: jes Result: Destroyed by P-80 Master with Gamma Rifle Performance ------------- Evolutions (7) 3500 Regions Visited (14) 2800 Robots Destroyed (224) 1120 Value Destroyed (9776) 9776 Prototype IDs (7) 140 Alien Tech Used (0) 0 Bonus (1816) 1816 TOTAL SCORE: 19152 Bonus ------- High Alert Combat Kills 355 Follower Combat Kills 307 Entered Garrisons 200 Used RIF Installer 500 Entered DSFs 500 Friendly Fire -46 Cogmind --------- Core Integrity 0/1300 Matter 117/300 Energy 106/125 System Corruption 52% Temperature Cool (0) Movement Rolling (80) Location -3/Research Parts ------- > --- POWER (3) -------- Light Ion Engine > --- PROPULSION (6) --- Wheel Wheel > --- UTILITY (8) ------ Improved Signal Interpreter Improved Targeting Computer Advanced System Shield > --- WEAPON (4) ------- (None) > --- INVENTORY (5) ---- Combat Gravmag System Long-range Sensor Array Advanced ECM Suite Coil Gun Heavy Shock Bomb Launcher Peak State ------------ > --- POWER ------------ Cold Fusion Reactor Light Antimatter Reactor > --- PROPULSION ------- Flexi-carbon Leg Armored Leg Armored Leg Armored Leg Myomer Leg Centrium Wheel > --- UTILITY ---------- Medium Storage Unit Triangulator Improved Signal Interpreter Improved Targeting Computer Core Analyzer Advanced ECM Suite Hacking Suite Advanced System Shield > --- WEAPON ----------- Heavy Machine Gun KE Penetrator Enhanced Gauss Cannon > --- INVENTORY -------- Improved Deuterium Engine Fission Core Cold Fusion Reactor Experimental Cooling System Compact Matter Pod Structural Scanner Improved Trap Scanner Improved Phase Shifter High-powered Tractor Beam Heavy Flak Cannon [Rating: 96] Favorites ----------- Power Improved Deuterium Engine Engine Improved Deuterium Engine Power Core Light Nuclear Core Reactor Cold Fusion Reactor Propulsion Light Treads Treads Light Treads Leg Armored Leg Wheel Wheel Hover Unit Combat Gravmag System Flight Unit VTOL Module Utility Improved Signal Interpreter Device ECM Suite Storage Medium Storage Unit Processor Improved Signal Interpreter Hackware Hacking Suite Protection Improved Light Armor Plating Weapon Flak Gun Energy Gun Pulse Rifle Energy Cannon Matter Neutralizer Ballistic Gun Flak Gun Ballistic Cannon Advanced Assault Cannon Launcher Rocket Array Special Weapon Remote Datajack Impact Weapon Flail Slashing Weapon Katana Piercing Weapon Spear Build | -11 -10 -10 -8 -7 -7 -7 -7 -6 -5 -5 -4 -4 -4 -3 ------- Run | Yrd Mat Sub Mat Fac Gar Fac Sto Fac Fac DSF Fac Was Fac Res Slots Evolved 14 | . . . 4 2 . . . 2 2 . 2 . . 2 Power 2 | . . . . 1 . . . . . . . . . 1 Propulsion 4 | . . . 2 . . . . . 1 . 1 . . . Utility 6 | . . . 2 1 . . . 1 1 . 1 . . . Weapon 2 | . . . . . . . . 1 . . . . . 1 Parts Attached 223 | 7 1 9 23 2 11 36 47 28 1 1 2 1 29 25 Power 33 | 1 . 3 1 1 2 9 7 2 . . . 1 3 3 Engine 18 | 1 . 3 1 1 1 5 3 2 . . . . . 1 Core 10 | . . . . . 1 4 4 . . . . . 1 . Reactor 5 | . . . . . . . . . . . . 1 2 2 Propulsion 73 | 2 . 2 10 1 1 15 16 9 1 . . . 10 6 Treads 34 | . . 2 10 1 1 5 13 1 . . . . 1 . Leg 27 | 2 . . . . . 7 3 6 1 . . . 5 3 Wheel 8 | . . . . . . 2 . 2 . . . . 1 3 Hover 3 | . . . . . . 1 . . . . . . 2 . Flight 1 | . . . . . . . . . . . . . 1 . Utility 65 | 1 1 1 7 . 4 6 13 12 . . 2 . 12 6 Device 34 | . . 1 3 . 1 3 8 7 . . 1 . 8 2 Storage 9 | 1 . . 2 . . 1 2 2 . . . . 1 . Processor 10 | . . . 2 . . 1 1 2 . . . . 2 2 Hackware 6 | . . . . . . 1 2 . . . 1 . 1 1 Protection 6 | . 1 . . . 3 . . 1 . . . . . 1 Artifact . | . . . . . . . . . . . . . . . Weapon 52 | 3 . 3 5 . 4 6 11 5 . 1 . . 4 10 Energy Gun 4 | 1 . . . . 1 . . 1 . . . . . 1 Energy Cannon 1 | . . . . . . . . . . . . . . 1 Ballistic Gun 32 | 2 . 3 2 . 3 4 7 2 . . . . 3 6 Ballistic Cannon 7 | . . . 1 . . 2 . 1 . 1 . . 1 1 Launcher 3 | . . . . . . . 2 . . . . . . 1 Special Weapon 1 | . . . . . . . 1 . . . . . . . Impact Weapon 1 | . . . 1 . . . . . . . . . . . Slashing Weapon 1 | . . . 1 . . . . . . . . . . . Piercing Weapon 2 | . . . . . . . 1 1 . . . . . . Special Melee Weapon . | . . . . . . . . . . . . . . . Unidentified Prototypes 5 | . . . . . . . 2 . . . . 1 2 . Corrupted Parts 6 | . . . . . . . . . . . . . . 6 System Corruption 32 | . . . . . . . . . . . . . . 32 Parts Lost 84 | . . 4 . . 1 7 18 14 . . . . 18 22 Power 13 | . . 1 . . . 2 3 3 . . . . 1 3 Propulsion 31 | . . 1 . . . 2 7 6 . . . . 8 7 Utility 23 | . . 1 . . 1 2 6 4 . . . . 3 6 Weapon 17 | . . 1 . . . 1 2 1 . . . . 6 6 Highest Loss Streak 13 | . . 2 . . 1 3 5 6 . . . . 9 13 To Critical Strikes 2 | . . . . . . . . 1 . . . . . 1 Average Backups 8 | 2 5 6 9 12 13 9 7 7 8 8 9 8 8 6 Power 1 | . 1 . . . 1 1 . . 1 1 1 . 1 . Propulsion . | 1 2 1 1 1 1 . 1 1 . . . . . . Utility 2 | . . . 1 4 4 3 1 2 5 5 4 4 4 3 Weapon 3 | . 1 3 5 7 6 3 3 2 2 2 4 4 2 2 Tool/Special . | . . . . . . . . . . . . . . . Unused Backups 34 | . . . 6 . 4 5 6 6 . 2 . . 4 1 Power 7 | . . . 1 . . 2 3 1 . . . . . . Propulsion 1 | . . . . . . 1 . . . . . . . . Utility 7 | . . . 1 . . 1 . 3 . . . . 2 . Weapon 19 | . . . 4 . 4 1 3 2 . 2 . . 2 1 Tool/Special . | . . . . . . . . . . . . . . . Average Slot Usage (%) 94 | . 96 99 98 98 100 95 95 96 92 94 89 92 91 58 Engine 8 | . 14 14 9 15 14 10 8 6 5 5 5 5 2 . Core 2 | . . . . . . 4 4 5 . . . . . 1 Treads 17 | . . 10 35 30 30 15 24 15 . . . . . . Leg 8 | . 28 16 . . . 8 3 8 29 29 26 26 23 5 Device 13 | . . 10 17 21 15 15 11 12 15 17 21 21 13 5 Storage 6 | . 14 14 9 7 7 5 6 6 5 5 5 5 4 2 Processor 10 | . . . 8 7 7 13 9 8 11 11 10 10 12 18 Hackware 4 | . . . . . . 1 8 8 5 5 5 5 8 4 Energy Gun 1 | . 14 . . . 5 2 . . . . . . . . Ballistic Gun 10 | . 14 27 12 7 6 9 13 11 5 3 . . 2 3 Ballistic Cannon 2 | . . . 5 7 . . . . 5 6 10 10 7 . Piercing Weapon 1 | . . . . . . . . 5 5 5 5 5 2 . Peak Build Rating 96 | 6 7 13 33 37 38 42 41 60 67 68 70 79 96 91 Average Rating 42 | 4 6 11 27 35 35 36 34 47 64 66 69 77 79 63 On Entrance 40 | . 6 7 12 31 35 36 37 35 58 64 68 70 79 73 Avg Prop Armor Cover (%) 8 | . . . 12 7 6 9 5 3 . 8 8 . 7 10 Naked Turns . | . . . . . . . . . . . . . . . Heaviest Build 62 | 12 15 19 42 53 55 53 42 46 35 39 40 52 62 51 Greatest Support 96 | 20 20 40 82 76 96 88 88 80 88 88 48 88 88 53 Greatest Overweight (x) 3 | . . . . . . 2 . 3 . . . . 1 2 Average Overweight (x) . | . . . . . . . . . . . . . . . Largest Inventory Capacity 15 | 8 8 8 15 15 15 15 10 10 10 10 10 10 10 10 Average Capacity 10 | 7 8 8 10 15 15 10 8 10 10 10 10 10 9 7 Most Carried 15 | 4 6 8 15 14 15 15 10 10 9 10 10 9 10 10 Average Carried 8 | 2 5 7 9 12 13 9 7 7 8 8 9 8 8 6 Final Capacity 15 | 8 8 8 15 15 15 8 10 10 10 10 10 10 5 5 Final Carried 15 | 4 6 5 15 12 13 8 8 10 8 10 9 8 5 5 Class Distribution -------------------- 54% | Scavenger-Mutant 32% | Mutant 4% | Scientist-Assassin Dominant Class ---------------- Mutant | -10/Materials Mutant | -10/Subcaves Mutant | -8/Materials Mutant | -7/Factory Mutant | -7/Garrison Scavenger-Mutant | -7/Factory Scavenger-Mutant | -7/Storage Scavenger-Mutant | -6/Factory Scavenger-Mutant | -5/Factory Scavenger-Mutant | -5/DSF Scavenger-Assassin | -4/Factory Scavenger-Mutant | -4/Waste Scientist-Assassin | -4/Factory Scavenger-Mutant | -3/Research Resources | -11 -10 -10 -8 -7 -7 -7 -7 -6 -5 -5 -4 -4 -4 -3 ----------- Run | Yrd Mat Sub Mat Fac Gar Fac Sto Fac Fac DSF Fac Was Fac Res Matter Collected 8814 | 234 11 372 585 . 719 1225 2141 1165 . 6 . . 1895 461 Remotely 2292 | . . . . . . 399 808 . . . . . 879 206 Salvage Created 9434 | . 11 472 578 . 567 1212 2411 1436 . . . . 2023 724 Parts 454 | . 2 26 40 . 20 68 125 60 . . . . 84 29 Haulers Intercepted 9 | . . . 2 . . . 6 . . . . . 1 . Recyclers Shooed 13 | . . . . . . 2 2 3 . . . . 5 1 Parts Field Recycled . | . . . . . . . . . . . . . . . Retrieved Matter . | . . . . . . . . . . . . . . . Parts Self-Destructed 12 | . . 12 . . . . . . . . . . . . Prevented . | . . . . . . . . . . . . . . . Parts Restored . | . . . . . . . . . . . . . . . Kills | -11 -10 -10 -8 -7 -7 -7 -7 -6 -5 -5 -4 -4 -4 -3 ------- Run | Yrd Mat Sub Mat Fac Gar Fac Sto Fac Fac DSF Fac Was Fac Res Combat Hostiles Destroyed 170 | . . 11 15 . 12 25 50 21 . . . . 25 11 Melee 1 | . . . . . . 1 . . . . . . . . Guns 134 | . . 11 10 . 12 22 38 21 . . . . 13 7 Cannons 25 | . . . 5 . . 2 2 . . . . . 12 4 AOE 10 | . . . . . . . 10 . . . . . . . Classes Destroyed 20 | . 1 1 6 . 2 4 5 1 . . . . . . Worker 12 | . . . . . . 1 3 2 . . . . 5 1 Builder 10 | . . . . . . . 1 2 . . . . 6 1 Tunneler 2 | . 1 . . . . 1 . . . . . . . . Hauler 9 | . . . 2 . . . 6 . . . . . 1 . Recycler 12 | . . . 1 . . 1 1 4 . . . . 5 . Mechanic 1 | . . . . . . . 1 . . . . . . . Operator 2 | . . . . . . . 1 . . . . . 1 . Drone 1 | . . . . . . . 1 . . . . . . . Watcher 6 | . . . 1 . . 2 2 1 . . . . . . Swarmer 20 | . . . 7 . 3 . 6 . . . . . 4 . Grunt 65 | . . . . . 3 12 26 12 . . . . 8 4 Brawler 4 | . . . . . 3 . 1 . . . . . . . Duelist 3 | . . . . . . 2 1 . . . . . . . Protector 1 | . . . . . . . 1 . . . . . . . Sentry 24 | . . . 6 . 2 . 11 1 . . . . 4 . Specialist 4 | . . . . . . . . 2 . . . . . 2 Hunter 10 | . . . 2 . 1 . . 1 . . . . 2 4 Programmer 25 | . . . . . . 10 4 3 . . . . 7 1 Heavy 3 | . . . . . . 1 . 2 . . . . . . Subdweller 11 | . . 11 . . . . . . . . . . . . Best Kill Streak 15 | . 1 2 7 . 5 7 15 8 . . . . 9 3 Combat Bots Only 12 | . . 2 5 . 5 6 12 8 . . . . 4 3 Max Kills in Single Turn 5 | . 1 1 1 . 1 1 5 2 . . . . 3 1 Gunslinging . | . . . . . . . . . . . . . . . Exploded 4 | . . . . . . . 4 . . . . . . . Melee 1 | . . . . . . 1 . . . . . . . . Uniques/NPCs Destroyed . | . . . . . . . . . . . . . . . Combat | -11 -10 -10 -8 -7 -7 -7 -7 -6 -5 -5 -4 -4 -4 -3 -------- Run | Yrd Mat Sub Mat Fac Gar Fac Sto Fac Fac DSF Fac Was Fac Res Hostile Shots Fired 1629 | . . 49 61 . 159 143 501 145 . 8 . . 268 295 Missed 491 | . . 15 15 . 44 32 188 31 . 3 . . 74 89 Hits 1138 | . . 34 46 . 115 111 313 114 . 5 . . 194 206 Melee 15 | . . . . . 3 12 . . . . . . . . Projectile 1123 | . . 34 46 . 112 99 313 114 . 5 . . 194 206 Critical Strikes 47 | . . . 2 . . 11 7 7 . . . . 13 7 Part Disruptions 3 | . . . . . . . . . . . . . 2 1 Damage Taken 18736 | . . 891 430 . 1103 2370 3349 2314 . 272 . . 3787 4220 Core 3048 | . . 197 13 . 114 187 232 335 . 83 . . 570 1317 Absorbed by Shields . | . . . . . . . . . . . . . . . Regen/Repaired (Parts) 156 | . . . 72 . . 70 . . . . . . 14 . Core Remaining (%) 63 | 100 . 21 97 . . . 23 60 . 91 . . 50 . Volleys Fired 612 | . 2 42 44 . 49 92 146 81 . . . . 94 62 Largest 3 | . 2 2 2 . 2 2 2 2 . . . . 3 2 Hottest 128 | . 70 60 67 . 86 86 73 78 . . . . 121 128 Shots Fired 1173 | . 4 82 88 . 82 172 289 151 . . . . 219 86 Gun 935 | . 4 82 56 . 82 138 262 139 . . . . 110 62 Cannon 216 | . . . 32 . . 34 18 . . . . . 109 23 Launcher 7 | . . . . . . . 6 . . . . . . 1 Special 15 | . . . . . . . 3 12 . . . . . . Kinetic 1069 | . 2 82 88 . 58 149 280 129 . . . . 219 62 Thermal 68 | . 2 . . . 24 23 . . . . . . . 19 Explosive 6 | . . . . . . . 6 . . . . . . . Electromagnetic 15 | . . . . . . . . 10 . . . . . 5 Robot Hit Streak 27 | . 1 22 27 . 19 20 25 26 . . . . 18 27 Robot Miss Streak 9 | . 1 2 5 . 2 4 5 9 . . . . 5 4 Penetration Max 1 | . . . . . . 1 1 . . . . . 1 1 Secondary Targets 14 | . . 1 . . 5 . 1 6 . . . . . 1 Max Gunslinging Chain 1 | . . 1 . . 1 . 1 1 . . . . . 1 Shots Hit Robots 927 | . 2 71 66 . 69 128 219 142 . . . . 163 67 Core Hits 818 | . 2 23 51 . 37 79 244 210 . . . . 106 66 Critical Kills 6 | . . . . . . . 3 . . . . . 2 1 Critical Parts Destroyed 5 | . . . . . . 2 . . . . . . 1 2 Critical Strikes 35 | . . 1 . . 2 6 4 1 . . . . 18 3 Burn 2 | . . . . . 1 1 . . . . . . . . Destroy 12 | . . 1 . . . 2 3 . . . . . 3 3 Blast 15 | . . . . . . 2 1 . . . . . 12 . Sever 2 | . . . . . 1 1 . . . . . . . . Impale 4 | . . . . . . . . 1 . . . . 3 . Melee Attacks 101 | . . . 6 . 22 22 9 16 . . . . 26 . Impact 2 | . . . 2 . . . . . . . . . . . Slashing 52 | . . . 4 . 22 22 4 . . . . . . . Piercing 47 | . . . . . . . 5 16 . . . . 26 . Sneak Attacks 23 | . . . 2 . . 4 . 5 . . . . 12 . Combat Hostiles 1 | . . . . . . 1 . . . . . . . . Follow-up Attacks . | . . . . . . . . . . . . . . . Damage Inflicted 22859 | . 25 1049 1279 . 1453 3023 5995 3058 . . . . 5196 1781 Guns 14882 | . 25 1049 580 . 1211 2058 3946 2768 . . . . 2048 1197 Cannons 4294 | . . . 501 . . 635 339 . . . . . 2273 546 Explosions 1863 | . . . . . . . 1710 . . . . . 115 38 Melee 1810 | . . . 198 . 242 330 . 290 . . . . 750 . Ramming 10 | . . . . . . . . . . . . . 10 . Kinetic 17846 | . . 1049 1081 . 920 2324 4285 2654 . . . . 4321 1212 Thermal 1117 | . 25 . . . 291 369 . . . . . . . 432 Explosive 1825 | . . . . . . . 1710 . . . . . 115 . Electromagnetic 251 | . . . . . . . . 114 . . . . . 137 Impact . | . . . . . . . . . . . . . . . Slashing 770 | . . . 198 . 242 330 . . . . . . . . Piercing 1040 | . . . . . . . . 290 . . . . 750 . Highest Corruption 52 | . . . . . . 3 6 2 . 1 . 9 13 52 Average Corruption 5 | . . . . . . 1 3 1 . 1 . 9 10 11 Corruption Purged 4 | . . . . . . . . . . . . . 4 . Corruption Blocked . | . . . . . . . . . . . . . . . Effects 166 | . . . . . . 12 44 16 . . . 4 71 19 Message Errors 39 | . . . . . . 2 10 4 . . . 1 16 6 Matter Fused 46 | . . . . . . 2 14 6 . . . 1 20 3 Heat Flow Errors 20 | . . . . . . 3 5 1 . . . . 11 . Energy Discharges 19 | . . . . . . 1 5 1 . . . . 7 5 Parts Rejected 1 | . . . . . . . . . . . . . . 1 Parts Fused 2 | . . . . . . . . . . . . . 2 . Data Loss (minor) 18 | . . . . . . 1 3 2 . . . . 11 1 Data Loss (major) 11 | . . . . . . . 5 1 . . . 2 2 1 Misfires 5 | . . . . . . 1 2 1 . . . . 1 . Misdirections 1 | . . . . . . . . . . . . . . 1 Weapon Failures 4 | . . . . . . 2 . . . . . . 1 1 Overload Shots . | . . . . . . . . . . . . . . . Overflow Damage 497 | . . . 34 . . 74 44 92 . . . . 253 . Projectiles 34 | . . . . . . . 5 . . . . . 29 . Explosions 104 | . . . . . . 65 39 . . . . . . . Melee 359 | . . . 34 . . 9 . 92 . . . . 224 . Knockbacks 54 | . . . 15 . . 9 5 . . . . . 24 1 Impact . | . . . . . . . . . . . . . . . Kinetic 48 | . . . 15 . . 7 4 . . . . . 21 1 Secondary 6 | . . . . . . 2 1 . . . . . 3 . Self-Inflicted Damage 447 | . . . . . . 74 170 123 . . . . 54 26 Shots 12 | . . . . . . 1 6 2 . . . . 2 1 Rammed . | . . . . . . . . . . . . . . . Targets Rammed 2 | . . . . . . . . . . . . . 2 . Kicked 2 | . . . . . . . . . . . . . 2 . Crushed . | . . . . . . . . . . . . . . . Highest Temperature 351 | . 18 . 52 . 204 260 230 264 . . . . 351 173 Average Temperature 65 | . 8 . 21 . 71 86 47 67 . . . . 64 67 Received Heat Transfer 3633 | . . 210 108 . 234 495 1125 583 . . . . 580 298 Effects 1 | . . . . . . . . . . . . . 1 . Shutdowns 1 | . . . . . . . . . . . . . 1 . Siege Activations . | . . . . . . . . . . . . . . . Martial Activations . | . . . . . . . . . . . . . . . Shielding Activations . | . . . . . . . . . . . . . . . Robots Disrupted . | . . . . . . . . . . . . . . . Combat Hostiles . | . . . . . . . . . . . . . . . Robots Corrupted . | . . . . . . . . . . . . . . . Combat Hostiles . | . . . . . . . . . . . . . . . Parts Fried . | . . . . . . . . . . . . . . . Impact Corruptions . | . . . . . . . . . . . . . . . Robots Melted . | . . . . . . . . . . . . . . . Combat Hostiles . | . . . . . . . . . . . . . . . Parts Melted 1 | . . 1 . . . . . . . . . . . . Heat Transferred 1882 | . 74 . . . 550 814 . . . . . . . 444 Parts Sabotaged . | . . . . . . . . . . . . . . . Parts Stolen . | . . . . . . . . . . . . . . . Parts Stripped . | . . . . . . . . . . . . . . . Power Chain Reactions . | . . . . . . . . . . . . . . . Alert | -11 -10 -10 -8 -7 -7 -7 -7 -6 -5 -5 -4 -4 -4 -3 ------- Run | Yrd Mat Sub Mat Fac Gar Fac Sto Fac Fac DSF Fac Was Fac Res Maximum Alert Level 3 | . . . . . 3 2 2 1 . . . . 2 . Low Security (%) 58 | 100 100 . 100 100 39 58 3 62 100 100 100 100 59 100 Level 1 28 | . . . . . 11 40 50 37 . . . . 27 . Level 2 13 | . . . . . 46 . 45 . . . . . 12 . Level 3 . | . . . . . 1 . . . . . . . . . Level 4 . | . . . . . . . . . . . . . . . Level 5 . | . . . . . . . . . . . . . . . High Security . | . . . . . . . . . . . . . . . Max Security . | . . . . . . . . . . . . . . . Peak Influence 736 | . 5 . 187 76 736 426 514 296 47 62 32 . 440 123 Initial 386 | . . . . 76 2 386 193 231 47 32 32 . . 123 Average 184 | . . . 21 36 340 191 354 169 47 37 16 . 161 34 Influence Increases 5786 | . 10 . 467 4 764 864 1633 755 . 30 . . 975 284 Destroy 0b10 Robot/C 3320 | . . . 300 . 400 500 980 420 . . . . 500 220 Destroy 0b10 Robot/NC 285 | . 5 . 20 . 5 30 80 45 . . . . 90 10 Destroy Leader 842 | . . . 106 . 50 176 246 112 . . . . 112 40 Allied During Kill 55 | . . . . . 49 3 3 . . . . . . . Successful Hack 247 | . 5 . 20 4 . 64 50 39 . . . . 65 . Disable Machine 375 | . . . 15 . . 60 135 90 . . . . 75 . Anti-Garrison Action 200 | . . . . . 200 . . . . . . . . . Destroy Structure 357 | . . . 6 . 60 31 94 34 . . . . 118 14 Partial Spotted 30 | . . . . . . . . 15 . . . . 15 . Lose Combat Pursuer 75 | . . . . . . . 45 . . 30 . . . . Influence Decreases 5769 | . 10 . 298 169 32 1175 1550 1165 51 15 62 . 738 504 Entered New Map 1164 | . . . . 93 2 350 232 277 51 15 30 . . 114 Time Decay 3020 | . 10 . 273 76 . 735 658 598 . . 32 . 408 230 Lost Part 720 | . . . . . 10 70 180 140 . . . . 180 140 Lost Ally 240 | . . . . . 20 20 180 . . . . . . 20 Purge Threat 625 | . . . 25 . . . 300 150 . . . . 150 . Squads Dispatched 44 | . 1 . . . . 11 12 6 . 1 . . 7 6 Investigation 4 | . . . . . . 1 1 . . . . . . 2 Extermination 19 | . . . . . . 8 4 3 . . . . 3 1 Reinforcement 15 | . 1 . . . . 2 3 3 . 1 . . 2 3 Assault 2 | . . . . . . . 2 . . . . . . . Garrison 4 | . . . . . . . 2 . . . . . 2 . Intercept . | . . . . . . . . . . . . . . . Searches Triggered . | . . . . . . . . . . . . . . . Construction Impeded 5 | . . . . . . 1 1 . . . . . 2 1 Haulers Reinforced 2 | . . . . . . . 1 1 . . . . . . Active Scanning Responses . | . . . . . . . . . . . . . . . Cargo Convoy Interrupts . | . . . . . . . . . . . . . . . Stealth | -11 -10 -10 -8 -7 -7 -7 -7 -6 -5 -5 -4 -4 -4 -3 --------- Run | Yrd Mat Sub Mat Fac Gar Fac Sto Fac Fac DSF Fac Was Fac Res Distress Signals 13 | . . . 3 . . 2 5 . . . . . 2 1 Communications Jammed 7 | . . . . . . . . 6 . . . . . 1 Distress Signals 2 | . . . . . . . . 1 . . . . . 1 Times Spotted 254 | . 1 11 23 . 20 41 72 28 . 2 . 4 37 15 Peak Tracking Total 9 | . 1 2 5 . 8 6 9 8 . 3 . 4 6 4 Tactical Retreats 24 | . . . 1 . 2 8 6 . . 2 . . 5 . ECM-based Alert Blocks 31 | . . . 2 . 2 13 7 . . . . . 7 . Traps | -11 -10 -10 -8 -7 -7 -7 -7 -6 -5 -5 -4 -4 -4 -3 ------- Run | Yrd Mat Sub Mat Fac Gar Fac Sto Fac Fac DSF Fac Was Fac Res Traps Triggered 7 | . . 3 . . . 1 1 . . . 1 . . 1 Indirectly . | . . . . . . . . . . . . . . . Trap Hack Attempts . | . . . . . . . . . . . . . . . Triggered . | . . . . . . . . . . . . . . . Disarmed . | . . . . . . . . . . . . . . . Reprogrammed . | . . . . . . . . . . . . . . . Reused . | . . . . . . . . . . . . . . . Traps Extracted . | . . . . . . . . . . . . . . . Installed . | . . . . . . . . . . . . . . . Triggered . | . . . . . . . . . . . . . . . Most Traps Carried 1 | . . 1 . . . . . . . . . . . . Machines | -11 -10 -10 -8 -7 -7 -7 -7 -6 -5 -5 -4 -4 -4 -3 ---------- Run | Yrd Mat Sub Mat Fac Gar Fac Sto Fac Fac DSF Fac Was Fac Res Machines Disabled 27 | . . . 1 . 2 4 9 6 . . . . 5 . Max in Single Turn 4 | . . . 1 . 1 1 1 4 . . . . 2 . Garrison Access 4 | . . . . . . 1 1 1 . . . . 1 . Garrison Relay 2 | . . . . . 2 . . . . . . . . . Machines Repaired . | . . . . . . . . . . . . . . . Machines Dismantled . | . . . . . . . . . . . . . . . Machines Sabotaged . | . . . . . . . . . . . . . . . Overloaded Fab Kills . | . . . . . . . . . . . . . . . Hacking | -11 -10 -10 -8 -7 -7 -7 -7 -6 -5 -5 -4 -4 -4 -3 --------- Run | Yrd Mat Sub Mat Fac Gar Fac Sto Fac Fac DSF Fac Was Fac Res Machines Accessed 68 | . 2 . 11 3 . 14 11 10 1 . . . 13 3 Terminals 43 | . 2 . 6 2 . 6 9 7 1 . . . 9 1 Fabricators 3 | . . . . . . 2 . . . . . . . 1 Repair Stations 6 | . . . 1 . . 2 1 1 . . . . 1 . Recycling Units 6 | . . . 2 . . 1 . 1 . . . . 1 1 Scanalyzers 5 | . . . 2 . . 2 . . . . . . 1 . Garrison Access 5 | . . . . 1 . 1 1 1 . . . . 1 . Total Hacks 179 | . 5 . 32 6 . 25 27 26 1 . . . 50 7 Successful 85 | . 2 . 22 1 . 12 10 9 1 . . . 24 4 Failed 93 | . 3 . 9 5 . 13 17 17 . . . . 26 3 Catastrophic 32 | . . . 2 1 . 5 8 7 . . . . 8 1 Database Lockouts 1 | . . . 1 . . . . . . . . . . . Manual 37 | . . . 3 . . 5 14 3 . . . . 12 . Terminals 122 | . 5 . 18 4 . 11 24 22 1 . . . 35 2 Fabricators 4 | . . . . . . 2 . . . . . . . 2 Repair Stations 12 | . . . 2 . . 5 2 1 . . . . 2 . Recycling Units 13 | . . . 3 . . 1 . 2 . . . . 4 3 Scanalyzers 21 | . . . 9 . . 5 . . . . . . 7 . Garrison Access 7 | . . . . 2 . 1 1 1 . . . . 2 . Terminal Hacks 41 | . 2 . 9 . . 2 8 7 1 . . . 11 1 Record 8 | . . . . . . 1 . 1 . . . . 6 . Part Schematic 1 | . . . . . . 1 . . . . . . . . Prototype ID Bank 1 | . 1 . . . . . . . . . . . . . Open Door 3 | . . . . . . . 3 . . . . . . . Open DSF 1 | . . . . . . . . . 1 . . . . . Level Access Points 1 | . . . . . . . . 1 . . . . . . Branch Access Points 2 | . . . . . . . 1 . . . . . 1 . Emergency Access Points 3 | . . . 2 . . . . . . . . . . 1 Unreport Threat 5 | . . . 1 . . . 2 1 . . . . 1 . Locate Traps 7 | . . . 2 . . . 2 2 . . . . 1 . Dispatch Records 1 | . . . 1 . . . . . . . . . . . Hauler Manifests 4 | . 1 . 2 . . . . . . . . . 1 . Registered Components 1 | . . . . . . . . 1 . . . . . . Zone Layout 3 | . . . 1 . . . . 1 . . . . 1 . Fabricator Hacks 3 | . . . . . . 1 . . . . . . . 2 Network Status 1 | . . . . . . 1 . . . . . . . . Load Schematic 1 | . . . . . . . . . . . . . . 1 Build 1 | . . . . . . . . . . . . . . 1 Repair Station Hacks 9 | . . . 2 . . 4 1 . . . . . 2 . Scan Component 5 | . . . 1 . . 2 1 . . . . . 1 . Repair 4 | . . . 1 . . 2 . . . . . . 1 . Recycling Unit Hacks 10 | . . . 3 . . 1 . 1 . . . . 4 1 Recycle Component 1 | . . . . . . . . . . . . . 1 . Process 1 | . . . . . . . . . . . . . 1 . Report Inventory 6 | . . . 2 . . 1 . 1 . . . . 1 1 Retrieve Matter 1 | . . . . . . . . . . . . . 1 . Retrieve Components 1 | . . . 1 . . . . . . . . . . . Scanalyzer 17 | . . . 8 . . 3 . . . . . . 6 . Insert Component 1 | . . . 1 . . . . . . . . . . . Analyze 2 | . . . 2 . . . . . . . . . . . Retrieve Study 14 | . . . 5 . . 3 . . . . . . 6 . Garrison Access Hacks 5 | . . . . 1 . 1 1 1 . . . . 1 . Unlock Access 1 | . . . . 1 . . . . . . . . . . Seal Access 4 | . . . . . . 1 1 1 . . . . 1 . Unauthorized Hacks . | . . . . . . . . . . . . . . . Terminals . | . . . . . . . . . . . . . . . Fabricators . | . . . . . . . . . . . . . . . Repair Stations . | . . . . . . . . . . . . . . . Recycling Units . | . . . . . . . . . . . . . . . Scanalyzers . | . . . . . . . . . . . . . . . Garrison Access . | . . . . . . . . . . . . . . . Data Cores Recovered 1 | . . . . . . . . . . . . . 1 . Used 1 | . . . . . . . . . . . . . 1 . Hacking Detections 55 | . 2 . 7 3 . 10 8 9 1 . . . 12 3 Full Trace Events 3 | . . . . . . 1 1 . . . . . . 1 Feedback Events . | . . . . . . . . . . . . . . . Feedback Blocked . | . . . . . . . . . . . . . . . Robot Schematics Acquired . | . . . . . . . . . . . . . . . Robots Built . | . . . . . . . . . . . . . . . Authchips . | . . . . . . . . . . . . . . . Time . | . . . . . . . . . . . . . . . Total Robot Build Rating . | . . . . . . . . . . . . . . . Part Schematics Acquired 2 | . . . 1 . . 1 . . . . . . . . Parts Built 2 | . . . . . . . . . . . . . . 2 Authchips . | . . . . . . . . . . . . . . . Time 84 | . . . . . . . . . . . . . . 84 Total Part Build Rating 8 | . . . . . . . . . . . . . . 8 Part Studies Acquired 14 | . . . 5 . . 3 . . . . . . 6 . Parts Repaired 4 | . . . 1 . . 2 . . . . . . 1 . Time 123 | . . . 38 . . 60 . . . . . . 25 . Parts Recycled 1 | . . . . . . . . . . . . . 1 . Recycled Matter 85 | . . . . . . . . . . . . . 85 . Retrieved Matter 85 | . . . . . . . . . . . . . 85 . Retrieved Components 6 | . . . 6 . . . . . . . . . . . Parts Scanalyzed 1 | . . . 1 . . . . . . . . . . . Part Schematics Acquired 1 | . . . 1 . . . . . . . . . . . Parts Damaged . | . . . . . . . . . . . . . . . Bothacking | -11 -10 -10 -8 -7 -7 -7 -7 -6 -5 -5 -4 -4 -4 -3 ------------ Run | Yrd Mat Sub Mat Fac Gar Fac Sto Fac Fac DSF Fac Was Fac Res Used RIF Installer 1 | . . . . . 1 . . . . . . . . . Robots Hacked 6 | . . . . . . . 1 5 . . . . . . Non-combat 6 | . . . . . . . 1 5 . . . . . . Combat . | . . . . . . . . . . . . . . . Robot Hacks Applied 12 | . . . . . . . 1 11 . . . . . . no_distress 6 | . . . . . . . 1 5 . . . . . . find_chute 1 | . . . . . . . . 1 . . . . . . ignore_repairs 1 | . . . . . . . . 1 . . . . . . find_recycling 2 | . . . . . . . . 2 . . . . . . ignore_parts 2 | . . . . . . . . 2 . . . . . . Relay Couplers Released 10 | . . . . . 7 3 . . . . . . . . Machine Destruction 7 | . . . . . 7 . . . . . . . . . Programmers 3 | . . . . . . 3 . . . . . . . . Fabnet Peak Effective % . | . . . . . . . . . . . . . . . Robots Rewired . | . . . . . . . . . . . . . . . Allies Hacked . | . . . . . . . . . . . . . . . Hacks Repelled . | . . . . . . . . . . . . . . . Allies | -11 -10 -10 -8 -7 -7 -7 -7 -6 -5 -5 -4 -4 -4 -3 -------- Run | Yrd Mat Sub Mat Fac Gar Fac Sto Fac Fac DSF Fac Was Fac Res Total Allies 4 | . . . . . 2 . 2 . . . . . . . Largest Group 2 | . . . . . 2 1 2 . . . . . . . Highest-Rated Group 142 | . . . . . 142 62 62 . . . . . . . Highest-Rated Ally 80 | . . . . . 80 62 31 . . . . . . . Total Orders 21 | . . . . . . . 8 5 . . . . 2 6 ROAM 6 | . . . . . . . 5 1 . . . . . . EXPLORE 7 | . . . . . . . 2 1 . . . . 1 3 RETURN 8 | . . . . . . . 1 3 . . . . 1 3 Ally Attacks 51 | . . . . . 29 7 15 . . . . . . . Total Damage 1674 | . . . . . 1277 168 229 . . . . . . . Kills 9 | . . . . . 8 1 . . . . . . . . Allies Corrupted 2 | . . . . . . . . . . . . . . 2 Allies Melted . | . . . . . . . . . . . . . . . Intel | -11 -10 -10 -8 -7 -7 -7 -7 -6 -5 -5 -4 -4 -4 -3 ------- Run | Yrd Mat Sub Mat Fac Gar Fac Sto Fac Fac DSF Fac Was Fac Res Active Infowar (turns) 13539 | . . 673 1981 177 1224 3688 1222 1789 15 133 82 92 2070 393 Sensors 6501 | . . . 697 177 1 3313 81 450 15 133 82 92 1287 173 Terrain 2024 | . . 673 1281 55 4 11 . . . . . . . . Structural 3112 | . . . . . . . 961 1047 13 . 82 21 988 . Traps 2971 | . . . 3 94 1224 607 . 470 1 23 . . 394 155 Triangulation 150 | . . . . . . . . . . . . . 150 . Cloaking 319 | . . . . . . . . 128 15 104 1 71 . . Jamming 1648 | . . . . . . . . 887 . 133 82 92 234 220 ECM 8497 | . . . 1854 177 1224 3688 261 . . . . . 1293 . Robot Analysis Total . | . . . . . . . . . . . . . . . Derelict Logs Recovered . | . . . . . . . . . . . . . . . Drone Launches 44 | . . . . . . . 30 6 . . . . 2 6 Drone Recoveries 27 | . . . . . . . 15 6 . . . . 2 4 Exploration | -11 -10 -10 -8 -7 -7 -7 -7 -6 -5 -5 -4 -4 -4 -3 ------------- Run | Yrd Mat Sub Mat Fac Gar Fac Sto Fac Fac DSF Fac Was Fac Res Turns Passed 15811 | 66 221 919 1981 177 1224 3688 2467 1903 15 133 82 107 2080 748 Spaces Moved 8047 | 46 108 553 974 104 580 1880 1026 906 10 84 66 76 1236 398 Core 61 | 7 . . . . . . . . . . . . 11 43 Treads 4114 | . . 200 974 104 580 725 914 617 . . . . . . Legs 3083 | 39 108 353 . . . 796 112 287 10 84 66 76 998 154 Wheels 449 | . . . . . . 359 . 2 . . . . . 88 Hover 267 | . . . . . . . . . . . . . 154 113 Flight 73 | . . . . . . . . . . . . . 73 . Fastest Speed 35 | 50 120 120 155 163 165 80 120 120 120 120 120 120 35 50 Average Speed 137 | 109 120 134 159 164 165 136 156 147 120 120 120 120 99 101 Slowest Speed 260 | 120 120 160 160 166 166 260 165 190 120 120 120 120 175 190 Overloaded Moves . | . . . . . . . . . . . . . . . Propulsion Burnouts . | . . . . . . . . . . . . . . . Robots Hopped 2 | . . . . . . . . . . . . . 2 . Potential Cave-ins . | . . . . . . . . . . . . . . . Cave-ins Triggered . | . . . . . . . . . . . . . . . Exploration Rate (%) 35 | 3 14 39 52 3 50 27 96 23 . 70 2 85 21 8 Regions Visited 14 Branch Regions 2 Pre-discovered Areas . | . . . . . . . . . . . . . . . Known Exits Taken 5 | . . . . 1 . 1 . 1 1 . . . 1 . Unknown Exits Taken 5 | 1 1 1 1 . . . 1 . . . . . . . Scrap Searched 1 | . . 1 . . . . . . . . . . . . Spaces Dug 28 | . . . 1 . 3 13 1 4 . . . . 6 . Terrain Destroyed 247 | . . . 3 . 3 30 116 33 . . . . 54 8 Melee 27 | . . . 1 . 3 13 1 4 . . . . 5 . Projectile 48 | . . . 2 . . 8 4 . . . . . 26 8 AOE 172 | . . . . . . 9 111 29 . . . . 23 . Terrain Rammed . | . . . . . . . . . . . . . . . Walls Destroyed . | . . . . . . . . . . . . . . . Machines Disabled . | . . . . . . . . . . . . . . . Actions | -11 -10 -10 -8 -7 -7 -7 -7 -6 -5 -5 -4 -4 -4 -3 --------- Run | Yrd Mat Sub Mat Fac Gar Fac Sto Fac Fac DSF Fac Was Fac Res Total 11502 | 57 195 647 1311 109 731 2795 1571 1297 12 116 70 91 1846 654 Wait 2046 | . 83 34 205 . 45 682 234 192 . 21 . 14 408 128 Move 8032 | 45 107 552 973 104 579 1879 1025 905 9 83 66 75 1232 398 Hop 1 | . . . . . . . . . . . . . 1 . Pick Up 146 | 4 2 6 22 . 7 21 27 24 . 4 . . 16 13 Fast Attach 107 | 6 1 . 9 . 1 24 24 11 . 1 . . 13 17 Attach 68 | . . 4 3 2 1 9 9 11 2 . 2 1 10 14 Detach 41 | . . . 4 . 1 9 10 4 . . 1 . 4 8 Swap 180 | 2 . 5 21 2 17 28 41 31 1 3 1 1 22 5 Drop 155 | . . 4 24 1 8 29 38 22 . 3 . . 18 8 Fire 612 | . 2 42 44 . 49 92 146 81 . . . . 94 62 Melee 101 | . . . 6 . 22 22 9 16 . . . . 26 . Ram 1 | . . . . . . . . . . . . . . 1 Kick 2 | . . . . . . . . . . . . . 2 . Crush . | . . . . . . . . . . . . . . . Escape Stasis . | . . . . . . . . . . . . . . . Rewire 2 | . . . . . 1 . . . . 1 . . . . Trap . | . . . . . . . . . . . . . . . Miscellaneous 8 | . . . . . . . 8 . . . . . . . Route ------- -11/Scrapyard -10/Materials -10/Subcaves -8/Materials -7/Factory -7/Garrison -7/Factory -7/Storage (discovered 2 exits: *Fac / Rec) -6/Factory (discovered 4 exits: *Fac x4) -5/Factory -5/DSF -4/Factory -4/Waste -4/Factory (discovered 6 exits: *Res / Upp x2 / Ext x2 / Arm) -3/Research History --------- Turn | Location | Event 10 | -11/Scrapyard | Discovered new exit (range 14) 67 | -11/Scrapyard | Entered Materials 279 | -10/Materials | Discovered new exit (range 9) 288 | -10/Materials | Entered Subcaves 289 | -10/Subcaves | Shifting Twisted Machinery released Shrapnel Trap 292 | -10/Subcaves | Shifting Twisted Machinery released Barrage Gun 326 | -10/Subcaves | Build established: Mutant 662 | -10/Subcaves | Shifting Twisted Machinery released Sub. Monowheel 1097 | -10/Subcaves | Core integrity fell below 50% 1140 | -10/Subcaves | Discovered new exit (range 15) 1180 | -10/Subcaves | Build established: Scavenger-Mutant 1207 | -10/Subcaves | Entered Materials 1207 | -8/Materials | Evolved 4 slots: Propulsion x2, Utility x2 2090 | -8/Materials | Repaired Barrage Gun 2113 | -8/Materials | Build established: Mutant 2264 | -8/Materials | Discovered new exit (range 14) 2827 | -8/Materials | Central database locked down 3188 | -8/Materials | Entered Factory 3188 | -7/Factory | Evolved 2 slots: Power x1, Utility x1 3365 | -7/Factory | Identified exit to Garrison 3365 | -7/Factory | Entered Garrison 3513 | -7/Garrison | Triggered checkpoint 3625 | -7/Garrison | Triggered checkpoint 3701 | -7/Garrison | Found embedded Infiltrators 3848 | -7/Garrison | Garrison Relay disabled 3905 | -7/Garrison | Triggered checkpoint 3915 | -7/Garrison | Triggered checkpoint 4025 | -7/Garrison | Triggered checkpoint 4155 | -7/Garrison | Triggered checkpoint 4348 | -7/Garrison | Installed Relay Interface Framework 4361 | -7/Garrison | Discovered new exit (range 3) 4427 | -7/Garrison | Garrison Relay disabled 4589 | -7/Garrison | Entered Factory 4589 | -7/Factory | Accompanied by 1 ally 5261 | -7/Factory | Build established: Scavenger-Mutant 6820 | -7/Factory | Repaired Imp. Sensor Array 7137 | -7/Factory | Repaired Flak Gun+ 7304 | -7/Factory | Build established: Mutant 7646 | -7/Factory | Build established: Scavenger-Mutant 8017 | -7/Factory | Build established: Mutant 8169 | -7/Factory | Lost 3 parts (1p2u) 8244 | -7/Factory | Discovered new exit (range 16) 8276 | -7/Factory | Identified exit to Storage 8277 | -7/Factory | Entered Storage 8361 | -7/Storage | Core integrity fell below 50% 8419 | -7/Storage | Garrison activated, responded to threat 8422 | -7/Storage | Met a pair of Derelict thieves 8506 | -7/Storage | Found Prototype Launcher 8506 | -7/Storage | Identified Rocket Array 8520 | -7/Storage | Garrison activated, responded to threat 8530 | -7/Storage | Found Rocket Array 8541 | -7/Storage | Destroyed 12 combat bots 8589 | -7/Storage | Lost 5 parts (1p1n2u1w) 8888 | -7/Storage | Build established: Scavenger-Mutant 8900 | -7/Storage | Lost 9 allies 8938 | -7/Storage | Lost 3 parts (2n1u) 9047 | -7/Storage | Lost 4 parts (3n1u) 9202 | -7/Storage | Found Rocket Array 10027 | -7/Storage | Identified exit to Recycling 10712 | -7/Storage | Discovered new exit (range 16) 10744 | -7/Storage | Entered Factory 10744 | -6/Factory | Evolved 2 slots: Utility x1, Weapon x1 11486 | -6/Factory | Destroyed 8 combat bots 11516 | -6/Factory | Lost 6 parts (2n3u1w) 11922 | -6/Factory | Identified exit to Factory 12647 | -6/Factory | Entered another Factory area 12647 | -5/Factory | Evolved 2 slots: Propulsion x1, Utility x1 12659 | -5/Factory | Identified exit to DSF 12662 | -5/Factory | Entered DSF 12689 | -5/DSF | Additional patrols routed to DSF 12779 | -5/DSF | Discovered new exit (range 11) 12793 | -5/DSF | Identified exit to Factory 12795 | -5/DSF | Entered Factory 12795 | -4/Factory | Evolved 2 slots: Propulsion x1, Utility x1 12877 | -4/Factory | Sucked down chute 12877 | -4/Factory | Entered Waste 12892 | -4/Waste | EMP discharged 12898 | -4/Waste | Spotted C-40 Crusher 12900 | -4/Waste | Spotted C-40 Crusher 12914 | -4/Waste | Spotted C-40 Crusher 12914 | -4/Waste | Spotted C-40 Crusher 12922 | -4/Waste | Spotted C-40 Crusher 12973 | -4/Waste | Discovered new exit (range 10) 12983 | -4/Waste | Identified exit to Factory 12984 | -4/Waste | Entered Factory 13080 | -4/Factory | Repaired Imp. Trap Scanner 13465 | -4/Factory | Garrison activated, responded to threat 13510 | -4/Factory | Build established: Scientist-Assassin 13625 | -4/Factory | Identified exit to Upper Caves 13625 | -4/Factory | Identified exit to Extension 13625 | -4/Factory | Identified exit to Armory 13793 | -4/Factory | Spotted B-86 Titan 13844 | -4/Factory | System corruption reached 10% 14204 | -4/Factory | Lost 3 parts (1n1u1w) 14441 | -4/Factory | Spotted B-86 Titan 14800 | -4/Factory | Lost 9 parts (1p4n1u3w) 15016 | -4/Factory | Discovered new exit (range 22) 15060 | -4/Factory | Build established: Mutant 15063 | -4/Factory | Identified exit to Research 15064 | -4/Factory | Entered Research 15064 | -3/Research | Evolved 2 slots: Power x1, Weapon x1 15161 | -3/Research | Fabricated Flak Gun? 15324 | -3/Research | Lost 9 parts (1p4n1u3w) 15616 | -3/Research | Build established: Scavenger-Mutant 15700 | -3/Research | System corruption reached 10% 15739 | -3/Research | Core integrity fell below 50% 15757 | -3/Research | Core integrity fell below 20% 15775 | -3/Research | System corruption reached 30% 15809 | -3/Research | Lost 13 parts (2p3n5u3w) 15812 | -3/Research | Destroyed by P-80 Master with Gamma Rifle Last Messages --------------- dispatching reinforcements to local area. 15794_ P-80 Master destroyed. 15796_ Dropped Coil Gun. 15797_ Dropped Unknown Energy Gun. 15798_ Acquired Hvy. Gauss Cannon. 15799_ Dropped Hvy. Gauss Cannon. 15802_ Acquired Coil Gun. 15802_ K-01 Serf collects debris. 15804_ Acquired Lgt. Ion Engine. 15805_ Dropped Flak Gun+. 15806_ K-01 Serf collects debris. 15807_ Acquired Corrupted Wheel. 15807_ Integrated Corrupted Wheel (+6). 15809_ W-44 Eye sends out distress signal. 15810_ K-01 Serf collects debris. 15810_ P-80 Master resets W-44 Eye, system corruption cleaned. 15810_ Acquired Corrupted Wheel. 15810_ Integrated Corrupted Wheel (+10). [Achievement: Z1$+NX3F=JRE3_ZNQR] Map ----- +----------------------------------------------------+ | ?????????????????????????????????????????????????? | | ?????????????????????????????????????????????????? | | ?????????????????????????????????????????????????? | | ?????????????????????????????????????????????????? | | ?????????????????????????????????????????????????? | | ?????????????????????????????????????????????????? | | ?????????????????????????????????????????????????? | | ?????????????????????????????????????????????????? | | ?????????????????????????????????????????????????? | | ?????????????????????????????????????????????????? | | ?????????????????????????????????????????????????? | | ??????????????????????????+??????????????????????? | | ?????????????????????????? ?????????????????????? | | #########????????????????? ?????????????????????? | | #????????????????? ?????????????????????? | | !#????????????????? ?????????????????????? | | "" #????????????????? #?????????????????????? | | "" ! #????????????????? ###########???????????? | | "T #????????????????# # #???????????? | | "" #????????????????# # #???????????? | | "" #????????????????# # #???????????? | | #????????????????# # #???????????? | | ]#????????????????# # #???????????? | | ##+####################### # #???????????? | | %% !%!%# #???????????? | | % =@%#[ #???????????? | | =k*!+!! #???????????? | | p w []!u#=!!!! #???????????? | | ##/######+#############[####%! !![ #???????????? | | # ## # ![ #???????????? | | # ## # #???????????? | | # """ ## # #???????????? | | #! """ ## # #???????????? | | #!! """ ## # #???????????? | | #!! ## ###########???????????? | | # ## #?????????????????????? | | ##################### #?????????????????????? | | #??????????# #?????????????????????? | | ! #??????????# #?????????????????????? | | """" #??????????# #?????????????????????? | | """" #??????????# #?????????????????????? | | """" #??????????# #?????????????????????? | | """" #??????????########?????????????????????? | | #???????????????????????????????????????? | | #???????????????????????????????????????? | | ##########???????????????????????????????????????? | | ?????????????????????????????????????????????????? | | ?????????????????????????????????????????????????? | | ?????????????????????????????????????????????????? | | #######??????????????????????????????????????????? | +----------------------------------------------------+ Best States ------------- Heat Dissipation 62 Energy Generation 37 Energy Capacity 490 Matter Stores 300 Matter Capacity 300 Sight Range 16 Robot Scan Range 18 Terrain Scan Range 16 Terrain Scan Density 10 ECM Strength 2 Jamming Range 14 Cloak Strength 2 Armor Coverage 150 Resistance: EX 50 Evasion (%) 63 Targeting Accuracy 18 Target Analysis 8 Core Analysis 6 Recoil Reduction 4 Offensive Hacking 10 Defensive Hacking 14 Item Schematics ----------------- Pulse Rifle | -8/Materials | Scanalyzed Flak Gun | -7/Factory | Hacked Robot Schematics ------------------ None Fabricated ------------ Flak Gun | x2 | -3/Research Repaired ---------- Barrage Gun | 42% | -8/Materials Imp. Sensor Array | 36% | -7/Factory Flak Gun | 60% | -7/Factory Imp. Trap Scanner | 36% | -4/Factory Studied --------- Flak Cannon | -8/Materials | Hacked Hpw. Shotgun | -8/Materials | Hacked Pulse Rifle | -8/Materials | Hacked Hvy. Assault Rifle | -8/Materials | Hacked Arm. Treads | -8/Materials | Hacked Autogun | -7/Factory | Hacked Flak Gun | -7/Factory | Hacked Imp. Deuterium Engine | -7/Factory | Hacked KE Penetrator | -4/Factory | Hacked Flexi-carbon Leg | -4/Factory | Hacked Arm. Leg | -4/Factory | Hacked Adv. Assault Cannon | -4/Factory | Hacked Enh. Gauss Cannon | -4/Factory | Hacked Hvy. Flak Cannon | -4/Factory | Hacked Alien Tech Used ----------------- None Achievements -------------- Botjacking Release The Drones! Universal Adapter Z1$+NX3F=JRE3_ZNQR Challenges ------------ None Game ------ Seed DefenseCommAutocannon Manual? 0 Play Time 05:45:58 Cumulative 76.7 hours Start 2025.11.13 @ 14:27:05 End 2025.11.13 @ 20:50:03 Sessions 1 Manual Loads 0 Difficulty Rogue Special Mode None Game No. 41 Rogue 41 Adventurer 0 Explorer 0 Win Type - Total 0 Types 0/0/0/0/0/0/0/0/0/0 Lore% 17 Gallery% 28 Achievement% 22 Wizard Run 0 Options --------- Layout 1 ASCII 1 Keyboard 1 Movement Vi Keybinds 0 Fullscreen 2 Font 36/Terminus Map View 50x43 Zoom Use 0% Tactical HUD 1 Map Filters NONE Filters NONE Steam 1 RUN: 5bbeb33f-a8de-439d-9c92-0152d7e5eade